{"text_format":"3","workbook":"xlsx","n_sheets":3,"sheets":["Lista de alunos","Alunos por turma","Detalhes do aluno"],"not_rendered":{"images":2,"defined_names":8},"read":"whole","date_system":"1900"}

{"sheet":"Lista de alunos","index":0,"n_rows":8,"n_cols":13,"rows_kept":8,"merged":[[1,2,2,3],[1,4,1,11],[2,4,2,11],[6,12,8,16]]}
[]
[null,null,"Lista de alunos",null,"IR PARA LISTA POR TURMA"]
[{"$nulls":4},"IR PARA DETALHES DO ALUNO"]
[null,null,"NOME DO ALUNO","EMAIL","TELEFONE RESIDENCIAL","CELULAR","DATA DE NASC.","CONTATO DE EMERGÊNCIA","TELEFONE DE EMERGÊNCIA","MÉDICO","TELEFONE DO MÉDICO","  "]
[null,null,"Nome 1","Endereço de email","Telefone residencial","Celular","Data","Contato 1","Telefone de emergência","Médico 1","Telefone do médico"]
[null,null,"Nome 2","Endereço de email","Telefone residencial","Celular","Data","Contato 2","Telefone de emergência","Médico 2","Telefone do médico"]
[null,null,"Nome 3","Endereço de email","Telefone residencial","Celular","Data","Contato 3","Telefone de emergência","Médico 3","Telefone do médico",null,"Dica: adicione mais alunos pressionando a tecla Tab na última célula da tabela."]
[null,null,"Nome 4","Endereço de email","Telefone residencial","Celular","Data","Contato 4","Telefone de emergência","Médico 4","Telefone do médico"]

{"sheet":"Alunos por turma","index":1,"n_rows":12,"n_cols":7,"rows_kept":12,"merged":[[1,2,2,2],[1,3,2,3],[1,4,1,6],[2,4,2,6]]}
[]
[null,null,"Alunos por turma","Instituto de Design Gráfico","IR PARA LISTA DE ALUNOS"]
[{"$nulls":4},"IR PARA DETALHES DO ALUNO"]
[null,null,"DISCIPLINA","Nome da disciplina","DATA DE INÍCIO","Data"]
[null,null,"INSTRUTOR","Instrutor 1","DATA DE TÉRMINO","Data"]
[null,null,"ALUNOS MATRICULADOS",{"$f":"COUNTA(EstudantesPorTurma[NOME DO ALUNO])","v":4}]
[]
[null,null,"NOME DO ALUNO","EMAIL","TELEFONE RESIDENCIAL","CELULAR","  "]
[null,null,"Nome 1",{"$f":"IFERROR(VLOOKUP(EstudantesPorTurma[[#This Row],[NOME DO ALUNO]],Alunos[],2),\"\")","v":"Endereço de email"},{"$f":"IFERROR(VLOOKUP(EstudantesPorTurma[[#This Row],[NOME DO ALUNO]],Alunos[],3),\"\")","v":"Telefone residencial"},{"$f":"IFERROR(VLOOKUP(EstudantesPorTurma[[#This Row],[NOME DO ALUNO]],Alunos[],4),\"\")","v":"Celular"}]
[null,null,"Nome 2",{"$f":"IFERROR(VLOOKUP(EstudantesPorTurma[[#This Row],[NOME DO ALUNO]],Alunos[],2),\"\")","v":"Endereço de email"},{"$f":"IFERROR(VLOOKUP(EstudantesPorTurma[[#This Row],[NOME DO ALUNO]],Alunos[],3),\"\")","v":"Telefone residencial"},{"$f":"IFERROR(VLOOKUP(EstudantesPorTurma[[#This Row],[NOME DO ALUNO]],Alunos[],4),\"\")","v":"Celular"}]
[null,null,"Nome 3",{"$f":"IFERROR(VLOOKUP(EstudantesPorTurma[[#This Row],[NOME DO ALUNO]],Alunos[],2),\"\")","v":"Endereço de email"},{"$f":"IFERROR(VLOOKUP(EstudantesPorTurma[[#This Row],[NOME DO ALUNO]],Alunos[],3),\"\")","v":"Telefone residencial"},{"$f":"IFERROR(VLOOKUP(EstudantesPorTurma[[#This Row],[NOME DO ALUNO]],Alunos[],4),\"\")","v":"Celular"}]
[null,null,"Nome 4",{"$f":"IFERROR(VLOOKUP(EstudantesPorTurma[[#This Row],[NOME DO ALUNO]],Alunos[],2),\"\")","v":"Endereço de email"},{"$f":"IFERROR(VLOOKUP(EstudantesPorTurma[[#This Row],[NOME DO ALUNO]],Alunos[],3),\"\")","v":"Telefone residencial"},{"$f":"IFERROR(VLOOKUP(EstudantesPorTurma[[#This Row],[NOME DO ALUNO]],Alunos[],4),\"\")","v":"Celular"}]

{"sheet":"Detalhes do aluno","index":2,"n_rows":13,"n_cols":4,"rows_kept":13,"merged":[[1,2,2,2],[1,3,1,4],[2,3,2,4],[3,2,3,3]]}
[]
[null,null,"Detalhes do aluno","IR PARA LISTA DE ALUNOS"]
[{"$nulls":3},"IR PARA LISTA POR TURMA"]
[null,null,"DICA: SELECIONE UM ESTUDANTE NA LISTA SUSPENSA NA CÉLULA D5 PARA ATUALIZAR OS DETALHES DO ALUNO"]
[null,null,"NOME DO ALUNO","Nome 1"]
[null,null,"EMAIL",{"$f":"IFERROR(VLOOKUP(NomeDoEstudante,Alunos[],2,FALSE),\"\")","v":"Endereço de email"}]
[null,null,"TELEFONE RESIDENCIAL",{"$f":"IFERROR(VLOOKUP(NomeDoEstudante,Alunos[],3,FALSE),\"\")","v":"Telefone residencial"}]
[null,null,"CELULAR",{"$f":"IFERROR(VLOOKUP(NomeDoEstudante,Alunos[],4,FALSE),\"\")","v":"Celular"}]
[null,null,"DATA DE NASC.",{"$f":"IFERROR(VLOOKUP(NomeDoEstudante,Alunos[],5,FALSE),\"\")","v":"Data"}]
[null,null,"CONTATO DE EMERGÊNCIA",{"$f":"IFERROR(VLOOKUP(NomeDoEstudante,Alunos[],6,FALSE),\"\")","v":"Contato 1"}]
[null,null,"TELEFONE DE EMERGÊNCIA",{"$f":"IFERROR(VLOOKUP(NomeDoEstudante,Alunos[],7,FALSE),\"\")","v":"Telefone de emergência"}]
[null,null,"MÉDICO",{"$f":"IFERROR(VLOOKUP(NomeDoEstudante,Alunos[],8,FALSE),\"\")","v":"Médico 1"}]
[null,null,"TELEFONE DO MÉDICO",{"$f":"IFERROR(VLOOKUP(NomeDoEstudante,Alunos[],9,FALSE),\"\")","v":"Telefone do médico"}]